[Event "Titled Tuesday Blitz April 26 Early 2022"]
[White "Ezat, Mohamed"]
[Black "Pourkashiyan, Atousa"]
[WhiteFideId "10600906"]
[BlackFideId "12502014"]
[WhiteElo "2386"]
[BlackElo "2247"]
[Result "0-1"]
[Round "03"]
[TimeControl "180+1"]
[Date "2022.04.26"]
[WhiteClock "0:00:15"]
[BlackClock "0:00:14"]

1. d4 {[%clk 0:03:00]}  Nf6 {[%clk 0:01:15]} 2. c4 {[%clk 0:02:58]}  e6 {[%clk 0:01:15]} 3. Nc3 {[%clk 0:02:56]}  Bb4 {[%clk 0:01:15]} 4. e3 {[%clk 0:02:57]}  O-O {[%clk 0:01:13]} 5. a3 {[%clk 0:02:57]}  Bxc3+ {[%clk 0:01:13]} 6. bxc3 {[%clk 0:02:58]}  c5 {[%clk 0:01:14]} 7. Bd3 {[%clk 0:02:59]}  d5 {[%clk 0:01:14]} 8. cxd5 {[%clk 0:02:56]}  exd5 {[%clk 0:01:14]} 9. f3 {[%clk 0:02:55]}  Re8 {[%clk 0:01:13]} 10. Ne2 {[%clk 0:02:55]}  Nc6 {[%clk 0:01:12]} 11. O-O {[%clk 0:02:55]}  b6 {[%clk 0:01:10]} 12. Ng3 {[%clk 0:02:55]}  Be6 {[%clk 0:01:09]} 13. Ra2 {[%clk 0:02:54]}  Rc8 {[%clk 0:01:08]} 14. Raf2 {[%clk 0:02:53]}  cxd4 {[%clk 0:01:07]} 15. cxd4 {[%clk 0:02:53]}  Na5 {[%clk 0:01:07]} 16. Bb1 {[%clk 0:02:36]}  Rc4 {[%clk 0:00:55]} 17. Ba2 {[%clk 0:02:29]}  Rc3 {[%clk 0:00:55]} 18. e4 {[%clk 0:02:12]}  dxe4 {[%clk 0:00:55]} 19. fxe4 {[%clk 0:02:04]}  Bxa2 {[%clk 0:00:54]} 20. Rxa2 {[%clk 0:02:04]}  Nxe4 {[%clk 0:00:51]} 21. Nf5 {[%clk 0:02:02]}  Nd6 {[%clk 0:00:39]} 22. Ng3 {[%clk 0:00:36]}  Qh4 {[%clk 0:00:29]} 23. Rf4 {[%clk 0:00:32]}  Qh6 {[%clk 0:00:24]} 24. Raf2 {[%clk 0:00:28]}  Rec8 {[%clk 0:00:19]} 25. Bd2 {[%clk 0:00:28]}  Rd3 {[%clk 0:00:19]} 26. Nf1 {[%clk 0:00:18]}  Nac4 {[%clk 0:00:18]} 27. Bc1 {[%clk 0:00:16]}  Rxd1 {[%clk 0:00:18]} 28. Rxf7 {[%clk 0:00:16]}  Qxc1 {[%clk 0:00:15]} 29. h3 {[%clk 0:00:15]}  Nxf7 {[%clk 0:00:14]} 0-1


[Site "https://www.chess.com"]

[Event "Titled Tuesday Blitz April 26 Early 2022"]
[White "Fernandez, Daniel Howard"]
[Black "Andreikin, Dmitry"]
[WhiteFideId "5801605"]
[BlackFideId "4158814"]
[WhiteElo "2835"]
[BlackElo "3087"]
[Result "0-1"]
[Round "03"]
[TimeControl "180+1"]
[Date "2022.04.26"]
[WhiteClock "0:00:08"]
[BlackClock "0:00:33"]

1. e4 {[%clk 0:03:00]}  c5 {[%clk 0:02:59]} 2. Nf3 {[%clk 0:03:01]}  Nc6 {[%clk 0:03:00]} 3. d4 {[%clk 0:03:01]}  cxd4 {[%clk 0:03:00]} 4. Nxd4 {[%clk 0:03:02]}  e6 {[%clk 0:02:59]} 5. Nc3 {[%clk 0:03:00]}  Qc7 {[%clk 0:02:59]} 6. a3 {[%clk 0:03:00]}  a6 {[%clk 0:02:56]} 7. Be3 {[%clk 0:02:58]}  Nf6 {[%clk 0:02:54]} 8. f4 {[%clk 0:02:50]}  d6 {[%clk 0:02:54]} 9. Qf3 {[%clk 0:02:49]}  Bd7 {[%clk 0:02:52]} 10. O-O-O {[%clk 0:02:49]}  h5 {[%clk 0:02:50]} 11. h3 {[%clk 0:02:22]}  Rc8 {[%clk 0:02:49]} 12. Kb1 {[%clk 0:02:20]}  h4 {[%clk 0:02:47]} 13. g4 {[%clk 0:02:14]}  hxg3 {[%clk 0:02:46]} 14. Qxg3 {[%clk 0:02:15]}  b5 {[%clk 0:02:41]} 15. Nxc6 {[%clk 0:02:07]}  Bxc6 {[%clk 0:02:39]} 16. Bg2 {[%clk 0:02:00]}  Bxe4 {[%clk 0:02:27]} 17. Nxe4 {[%clk 0:01:53]}  Qxc2+ {[%clk 0:02:27]} 18. Ka1 {[%clk 0:01:54]}  Nxe4 {[%clk 0:02:27]} 19. Qf3 {[%clk 0:01:49]}  Nc5 {[%clk 0:01:54]} 20. Rc1 {[%clk 0:01:49]}  Qd3 {[%clk 0:01:38]} 21. Rcd1 {[%clk 0:01:18]}  Nb3+ {[%clk 0:01:32]} 22. Ka2 {[%clk 0:01:18]}  Qc4 {[%clk 0:01:32]} 23. Kb1 {[%clk 0:01:19]}  Qc2+ {[%clk 0:01:27]} 24. Ka2 {[%clk 0:01:18]}  Qc4 {[%clk 0:01:22]} 25. Kb1 {[%clk 0:01:17]}  d5 {[%clk 0:01:22]} 26. Qf2 {[%clk 0:01:04]}  Bc5 {[%clk 0:01:21]} 27. f5 {[%clk 0:00:59]}  O-O {[%clk 0:01:13]} 28. Bxc5 {[%clk 0:00:53]}  Nxc5 {[%clk 0:01:11]} 29. f6 {[%clk 0:00:49]}  Ne4 {[%clk 0:01:05]} 30. Bxe4 {[%clk 0:00:48]}  Qxe4+ {[%clk 0:01:06]} 31. Ka1 {[%clk 0:00:48]}  Rc2 {[%clk 0:01:06]} 32. Qg3 {[%clk 0:00:39]}  Rg2 {[%clk 0:01:05]} 33. Qc3 {[%clk 0:00:32]}  g6 {[%clk 0:00:52]} 34. h4 {[%clk 0:00:28]}  Kh7 {[%clk 0:00:47]} 35. h5 {[%clk 0:00:27]}  g5 {[%clk 0:00:47]} 36. Rhe1 {[%clk 0:00:21]}  Qc2 {[%clk 0:00:44]} 37. Qb4 {[%clk 0:00:19]}  a5 {[%clk 0:00:40]} 38. Qxb5 {[%clk 0:00:13]}  a4 {[%clk 0:00:36]} 39. Rc1 {[%clk 0:00:13]}  Qb3 {[%clk 0:00:35]} 40. Qxb3 {[%clk 0:00:09]}  axb3 {[%clk 0:00:36]} 41. Rc3 {[%clk 0:00:09]}  Rb8 {[%clk 0:00:34]} 42. Rc7 {[%clk 0:00:09]}  Kg8 {[%clk 0:00:34]} 43. h6 {[%clk 0:00:09]}  Rh2 {[%clk 0:00:33]} 44. Rg1 {[%clk 0:00:09]}  Rxh6 {[%clk 0:00:33]} 45. Rxg5+ {[%clk 0:00:10]}  Kf8 {[%clk 0:00:33]} 46. Rg1 {[%clk 0:00:08]}  Rxf6 {[%clk 0:00:33]} 0-1


[Site "https://www.chess.com"]

[Event "Titled Tuesday Blitz April 26 Early 2022"]
[White "Gu, Xiaobing"]
[Black "Buscar, Michael"]
[WhiteFideId "8602611"]
[BlackFideId "2603616"]
[WhiteElo "2174"]
[BlackElo "2010"]
[Result "1-0"]
[Round "03"]
[TimeControl "180+1"]
[Date "2022.04.26"]
[WhiteClock "0:00:09"]
[BlackClock "0:00:06"]

1. e4 {[%clk 0:03:00]}  c5 {[%clk 0:02:57]} 2. Nf3 {[%clk 0:03:00]}  Nc6 {[%clk 0:02:57]} 3. Bb5 {[%clk 0:02:59]}  Nf6 {[%clk 0:02:57]} 4. e5 {[%clk 0:02:54]}  Nd5 {[%clk 0:02:57]} 5. O-O {[%clk 0:02:49]}  g6 {[%clk 0:02:55]} 6. Re1 {[%clk 0:02:40]}  Nc7 {[%clk 0:02:54]} 7. Bf1 {[%clk 0:02:39]}  Bg7 {[%clk 0:02:54]} 8. c3 {[%clk 0:02:39]}  O-O {[%clk 0:02:54]} 9. d4 {[%clk 0:02:39]}  cxd4 {[%clk 0:02:53]} 10. cxd4 {[%clk 0:02:39]}  d5 {[%clk 0:02:52]} 11. h3 {[%clk 0:02:36]}  f6 {[%clk 0:02:31]} 12. Nc3 {[%clk 0:02:33]}  fxe5 {[%clk 0:02:31]} 13. Nxe5 {[%clk 0:02:16]}  Nxe5 {[%clk 0:02:26]} 14. dxe5 {[%clk 0:02:16]}  Be6 {[%clk 0:02:21]} 15. Bg5 {[%clk 0:02:07]}  Rf5 {[%clk 0:02:17]} 16. Qd2 {[%clk 0:01:52]}  Rxe5 {[%clk 0:02:09]} 17. Bf4 {[%clk 0:01:47]}  Rxe1 {[%clk 0:02:06]} 18. Rxe1 {[%clk 0:01:47]}  Bf7 {[%clk 0:02:04]} 19. Be5 {[%clk 0:01:46]}  Ne8 {[%clk 0:01:57]} 20. Qd4 {[%clk 0:01:28]}  Bf6 {[%clk 0:01:25]} 21. Bb5 {[%clk 0:01:08]}  Qb6 {[%clk 0:01:11]} 22. Bxf6 {[%clk 0:00:41]}  Qxf6 {[%clk 0:01:00]} 23. Re5 {[%clk 0:00:17]}  Nd6 {[%clk 0:00:41]} 24. Nxd5 {[%clk 0:00:15]}  Bxd5 {[%clk 0:00:38]} 25. Qxd5+ {[%clk 0:00:16]}  Kg7 {[%clk 0:00:34]} 26. Re6 {[%clk 0:00:15]}  Qf7 {[%clk 0:00:10]} 27. Qe5+ {[%clk 0:00:15]}  Kf8 {[%clk 0:00:10]} 28. Ba4 {[%clk 0:00:12]}  Rc8 {[%clk 0:00:09]} 29. Bb3 {[%clk 0:00:11]}  Nf5 {[%clk 0:00:08]} 30. Qh8+ {[%clk 0:00:09]}  Qg8 {[%clk 0:00:08]} 31. Qxg8+ {[%clk 0:00:09]}  Kxg8 {[%clk 0:00:09]} 32. Rc6+ {[%clk 0:00:10]}  Kg7 {[%clk 0:00:08]} 33. Rxc8 {[%clk 0:00:10]}  Kf6 {[%clk 0:00:07]} 34. Rc7 {[%clk 0:00:09]}  e6 {[%clk 0:00:06]} 35. Rxb7 {[%clk 0:00:09]} 1-0


[Site "https://www.chess.com"]

[Event "Titled Tuesday Blitz April 26 Early 2022"]
[White "Gunduz, Umut Erdem"]
[Black "Banusz, Tamas"]
[WhiteFideId "6381383"]
[BlackFideId "722413"]
[WhiteElo "2099"]
[BlackElo "2602"]
[Result "0-1"]
[Round "03"]
[TimeControl "180+1"]
[Date "2022.04.26"]
[WhiteClock "0:00:23"]
[BlackClock "0:01:10"]

1. e4 {[%clk 0:03:00]}  e5 {[%clk 0:02:59]} 2. Nf3 {[%clk 0:03:00]}  Nc6 {[%clk 0:02:59]} 3. Bb5 {[%clk 0:03:01]}  a6 {[%clk 0:02:59]} 4. Ba4 {[%clk 0:03:01]}  Nf6 {[%clk 0:02:59]} 5. O-O {[%clk 0:03:01]}  Be7 {[%clk 0:02:59]} 6. Re1 {[%clk 0:03:01]}  b5 {[%clk 0:02:59]} 7. Bb3 {[%clk 0:03:01]}  d6 {[%clk 0:03:00]} 8. c3 {[%clk 0:02:59]}  O-O {[%clk 0:03:00]} 9. h3 {[%clk 0:03:00]}  Na5 {[%clk 0:03:00]} 10. Bc2 {[%clk 0:03:00]}  c5 {[%clk 0:03:01]} 11. d4 {[%clk 0:03:00]}  Nd7 {[%clk 0:03:01]} 12. a4 {[%clk 0:02:59]}  Bb7 {[%clk 0:02:59]} 13. Nbd2 {[%clk 0:02:57]}  exd4 {[%clk 0:02:57]} 14. cxd4 {[%clk 0:02:57]}  Nc6 {[%clk 0:02:58]} 15. d5 {[%clk 0:02:57]}  Nb4 {[%clk 0:02:57]} 16. Bb1 {[%clk 0:02:55]}  c4 {[%clk 0:02:54]} 17. Nf1 {[%clk 0:02:51]}  Nc5 {[%clk 0:02:53]} 18. Be3 {[%clk 0:02:44]}  Nbd3 {[%clk 0:02:42]} 19. Re2 {[%clk 0:02:39]}  Bf6 {[%clk 0:02:34]} 20. axb5 {[%clk 0:02:37]}  axb5 {[%clk 0:02:33]} 21. Rxa8 {[%clk 0:02:37]}  Qxa8 {[%clk 0:02:33]} 22. Bxc5 {[%clk 0:02:16]}  Nxc5 {[%clk 0:02:30]} 23. e5 {[%clk 0:02:16]}  dxe5 {[%clk 0:02:25]} 24. Nxe5 {[%clk 0:02:17]}  Bxd5 {[%clk 0:02:18]} 25. Ne3 {[%clk 0:02:10]}  Rd8 {[%clk 0:01:54]} 26. Nxd5 {[%clk 0:01:52]}  Qxd5 {[%clk 0:01:44]} 27. Qe1 {[%clk 0:01:45]}  Qd1 {[%clk 0:01:25]} 28. f4 {[%clk 0:01:29]}  Qxe1+ {[%clk 0:01:20]} 29. Rxe1 {[%clk 0:01:30]}  g6 {[%clk 0:01:20]} 30. Kf1 {[%clk 0:01:22]}  Na4 {[%clk 0:01:19]} 31. Nc6 {[%clk 0:01:01]}  Rd2 {[%clk 0:01:18]} 32. b4 {[%clk 0:00:26]}  cxb3 {[%clk 0:01:12]} 33. Na7 {[%clk 0:00:23]}  Nc3 {[%clk 0:01:10]} 0-1


[Site "https://www.chess.com"]

[Event "Titled Tuesday Blitz April 26 Early 2022"]
[White "Hamley, Ryan"]
[Black "Kucuksari, Kaan"]
[WhiteFideId "30959497"]
[BlackFideId "6380166"]
[WhiteElo "2445"]
[BlackElo "2305"]
[Result "0-1"]
[Round "03"]
[TimeControl "180+1"]
[Date "2022.04.26"]
[WhiteClock "0:00:02"]
[BlackClock "0:00:07"]

1. d4 {[%clk 0:03:00]}  d5 {[%clk 0:02:55]} 2. c4 {[%clk 0:02:58]}  c6 {[%clk 0:02:55]} 3. Nc3 {[%clk 0:02:58]}  Nf6 {[%clk 0:02:54]} 4. e3 {[%clk 0:02:58]}  e6 {[%clk 0:02:55]} 5. Nf3 {[%clk 0:02:58]}  Nbd7 {[%clk 0:02:55]} 6. Qc2 {[%clk 0:02:57]}  Bd6 {[%clk 0:02:55]} 7. b3 {[%clk 0:02:57]}  O-O {[%clk 0:02:54]} 8. Bb2 {[%clk 0:02:55]}  e5 {[%clk 0:02:43]} 9. dxe5 {[%clk 0:02:55]}  Nxe5 {[%clk 0:02:42]} 10. cxd5 {[%clk 0:02:49]}  cxd5 {[%clk 0:02:39]} 11. Nd4 {[%clk 0:02:46]}  Ne4 {[%clk 0:02:36]} 12. Nxe4 {[%clk 0:02:41]}  dxe4 {[%clk 0:02:37]} 13. a3 {[%clk 0:02:40]}  f5 {[%clk 0:02:07]} 14. Be2 {[%clk 0:02:39]}  Qg5 {[%clk 0:02:06]} 15. O-O {[%clk 0:02:29]}  Bd7 {[%clk 0:02:02]} 16. Qd2 {[%clk 0:02:19]}  Rad8 {[%clk 0:01:58]} 17. Rac1 {[%clk 0:02:14]}  Bc6 {[%clk 0:01:51]} 18. g3 {[%clk 0:01:31]}  f4 {[%clk 0:01:46]} 19. Ne6 {[%clk 0:01:27]}  Qh6 {[%clk 0:01:43]} 20. Nxf4 {[%clk 0:01:20]}  Nf3+ {[%clk 0:01:40]} 21. Bxf3 {[%clk 0:01:19]}  Bxf4 {[%clk 0:01:40]} 22. Qc3 {[%clk 0:01:09]}  exf3 {[%clk 0:01:39]} 23. exf4 {[%clk 0:01:09]}  Rd7 {[%clk 0:01:30]} 24. Kh1 {[%clk 0:00:59]}  Qh3 {[%clk 0:01:25]} 25. Rg1 {[%clk 0:00:59]}  Rf5 {[%clk 0:01:21]} 26. g4 {[%clk 0:00:52]}  Rf6 {[%clk 0:01:20]} 27. Qe5 {[%clk 0:00:48]}  Rf8 {[%clk 0:01:10]} 28. f5 {[%clk 0:00:40]}  Rfd8 {[%clk 0:01:02]} 29. Rce1 {[%clk 0:00:08]}  Rf7 {[%clk 0:00:24]} 30. Rg3 {[%clk 0:00:07]}  Qh4 {[%clk 0:00:20]} 31. g5 {[%clk 0:00:04]}  Re8 {[%clk 0:00:17]} 32. Qc3 {[%clk 0:00:02]}  Rfe7 {[%clk 0:00:12]} 33. Rxe7 {[%clk 0:00:01]}  Rxe7 {[%clk 0:00:13]} 34. Rg1 {[%clk 0:00:02]}  Qh3 {[%clk 0:00:09]} 35. f6 {[%clk 0:00:02]}  Rd7 {[%clk 0:00:04]} 36. fxg7 {[%clk 0:00:02]}  Qg2+ {[%clk 0:00:04]} 37. Rxg2 {[%clk 0:00:01]}  fxg2+ {[%clk 0:00:05]} 38. Kg1 {[%clk 0:00:02]}  Rd1+ {[%clk 0:00:06]} 39. Qe1 {[%clk 0:00:02]}  Rxe1# {[%clk 0:00:07]} 0-1


[Site "https://www.chess.com"]

[Event "Titled Tuesday Blitz April 26 Early 2022"]
[White "Harikrishna, Pentala"]
[Black "Maghsoodloo, Parham"]
[WhiteFideId "5007003"]
[BlackFideId "12539929"]
[WhiteElo "2574"]
[BlackElo "2630"]
[Result "1/2-1/2"]
[Round "03"]
[TimeControl "180+1"]
[Date "2022.04.26"]
[WhiteClock "0:00:10"]
[BlackClock "0:00:08"]

1. e4 {[%clk 0:03:00]}  e5 {[%clk 0:02:56]} 2. Nf3 {[%clk 0:03:01]}  Nc6 {[%clk 0:02:56]} 3. Bb5 {[%clk 0:03:01]}  a6 {[%clk 0:02:56]} 4. Ba4 {[%clk 0:03:01]}  Nf6 {[%clk 0:02:57]} 5. O-O {[%clk 0:03:01]}  b5 {[%clk 0:02:57]} 6. Bb3 {[%clk 0:03:01]}  Bc5 {[%clk 0:02:58]} 7. a4 {[%clk 0:02:58]}  Rb8 {[%clk 0:02:57]} 8. c3 {[%clk 0:02:57]}  d6 {[%clk 0:02:57]} 9. d4 {[%clk 0:02:57]}  Bb6 {[%clk 0:02:58]} 10. a5 {[%clk 0:02:57]}  Ba7 {[%clk 0:02:58]} 11. h3 {[%clk 0:02:57]}  O-O {[%clk 0:02:57]} 12. Be3 {[%clk 0:02:57]}  Ra8 {[%clk 0:02:47]} 13. Nbd2 {[%clk 0:02:48]}  h6 {[%clk 0:02:44]} 14. Re1 {[%clk 0:02:29]}  exd4 {[%clk 0:02:44]} 15. cxd4 {[%clk 0:02:24]}  Nb4 {[%clk 0:02:44]} 16. d5 {[%clk 0:02:06]}  Nd3 {[%clk 0:02:33]} 17. Re2 {[%clk 0:02:04]}  Bxe3 {[%clk 0:02:30]} 18. Rxe3 {[%clk 0:02:05]}  Nf4 {[%clk 0:02:30]} 19. Nd4 {[%clk 0:01:58]}  Bd7 {[%clk 0:02:30]} 20. Rc1 {[%clk 0:01:55]}  Re8 {[%clk 0:02:31]} 21. Bc2 {[%clk 0:01:27]}  Qe7 {[%clk 0:02:22]} 22. Bb1 {[%clk 0:01:21]}  Rac8 {[%clk 0:02:20]} 23. N2f3 {[%clk 0:01:12]}  Qf8 {[%clk 0:02:10]} 24. Qd2 {[%clk 0:01:07]}  g5 {[%clk 0:02:09]} 25. Nc6 {[%clk 0:00:55]}  Qg7 {[%clk 0:01:51]} 26. Nfd4 {[%clk 0:00:53]}  g4 {[%clk 0:01:12]} 27. hxg4 {[%clk 0:00:35]}  Nxg4 {[%clk 0:01:12]} 28. Rg3 {[%clk 0:00:33]}  Nh5 {[%clk 0:01:11]} 29. Rf3 {[%clk 0:00:33]}  Ne5 {[%clk 0:00:53]} 30. Rfc3 {[%clk 0:00:18]}  Kh8 {[%clk 0:00:34]} 31. Nxe5 {[%clk 0:00:16]}  dxe5 {[%clk 0:00:25]} 32. Ne2 {[%clk 0:00:16]}  Rg8 {[%clk 0:00:25]} 33. Ng3 {[%clk 0:00:16]}  Nf4 {[%clk 0:00:19]} 34. Rxc7 {[%clk 0:00:16]}  h5 {[%clk 0:00:12]} 35. Rxd7 {[%clk 0:00:09]}  Rxc1+ {[%clk 0:00:12]} 36. Qxc1 {[%clk 0:00:10]}  h4 {[%clk 0:00:13]} 37. Qe3 {[%clk 0:00:09]}  hxg3 {[%clk 0:00:13]} 38. fxg3 {[%clk 0:00:09]}  Qxg3 {[%clk 0:00:11]} 39. Qxg3 {[%clk 0:00:09]}  Rxg3 {[%clk 0:00:12]} 40. Rxf7 {[%clk 0:00:09]}  Rxg2+ {[%clk 0:00:13]} 41. Kf1 {[%clk 0:00:09]}  Rxb2 {[%clk 0:00:13]} 42. d6 {[%clk 0:00:09]}  Rxb1+ {[%clk 0:00:13]} 43. Kf2 {[%clk 0:00:09]}  Rd1 {[%clk 0:00:05]} 44. d7 {[%clk 0:00:10]}  Ne6 {[%clk 0:00:03]} 45. Re7 {[%clk 0:00:10]}  Nc5 {[%clk 0:00:02]} 46. Re8+ {[%clk 0:00:10]}  Kg7 {[%clk 0:00:03]} 47. d8=Q {[%clk 0:00:11]}  Nxe4+ {[%clk 0:00:03]} 48. Ke3 {[%clk 0:00:10]}  Rxd8 {[%clk 0:00:04]} 49. Rxd8 {[%clk 0:00:10]}  Nc5 {[%clk 0:00:04]} 50. Rd5 {[%clk 0:00:09]}  Nb3 {[%clk 0:00:04]} 51. Rd6 {[%clk 0:00:07]}  Nxa5 {[%clk 0:00:04]} 52. Rxa6 {[%clk 0:00:08]}  Nc4+ {[%clk 0:00:04]} 53. Ke4 {[%clk 0:00:08]}  Kf7 {[%clk 0:00:04]} 54. Rc6 {[%clk 0:00:07]}  Ke7 {[%clk 0:00:04]} 55. Kd5 {[%clk 0:00:05]}  Kd7 {[%clk 0:00:04]} 56. Rc5 {[%clk 0:00:05]}  Nb6+ {[%clk 0:00:02]} 57. Kxe5 {[%clk 0:00:05]}  b4 {[%clk 0:00:02]} 58. Kd4 {[%clk 0:00:04]}  Kd6 {[%clk 0:00:03]} 59. Rb5 {[%clk 0:00:05]}  Nd7 {[%clk 0:00:04]} 60. Rxb4 {[%clk 0:00:05]}  Kc6 {[%clk 0:00:05]} 61. Rc4+ {[%clk 0:00:05]}  Kd6 {[%clk 0:00:05]} 62. Ra4 {[%clk 0:00:06]}  Kc6 {[%clk 0:00:05]} 63. Ra6+ {[%clk 0:00:06]}  Kb5 {[%clk 0:00:06]} 64. Rh6 {[%clk 0:00:07]}  Nb6 {[%clk 0:00:05]} 65. Rh5+ {[%clk 0:00:07]}  Kc6 {[%clk 0:00:05]} 66. Rc5+ {[%clk 0:00:08]}  Kd6 {[%clk 0:00:05]} 67. Rc1 {[%clk 0:00:08]}  Nd7 {[%clk 0:00:06]} 68. Rh1 {[%clk 0:00:09]}  Kc6 {[%clk 0:00:06]} 69. Rh6+ {[%clk 0:00:09]}  Kb5 {[%clk 0:00:07]} 70. Rd6 {[%clk 0:00:09]}  Nb6 {[%clk 0:00:07]} 71. Rxb6+ {[%clk 0:00:10]}  Kxb6 {[%clk 0:00:08]} 1/2-1/2


[Site "https://www.chess.com"]

[Event "Titled Tuesday Blitz April 26 Early 2022"]
[White "Hartikainen, Jarmo"]
[Black "Olsen, Filip Boe"]
[WhiteFideId "503134"]
[BlackFideId "1440640"]
[WhiteElo "2120"]
[BlackElo "2188"]
[Result "0-1"]
[Round "03"]
[TimeControl "180+1"]
[Date "2022.04.26"]
[WhiteClock "0:00:03"]
[BlackClock "0:00:12"]

1. e4 {[%clk 0:03:00]}  c6 {[%clk 0:02:54]} 2. d4 {[%clk 0:03:00]}  d5 {[%clk 0:02:55]} 3. Nc3 {[%clk 0:03:00]}  dxe4 {[%clk 0:02:53]} 4. Nxe4 {[%clk 0:03:01]}  Bf5 {[%clk 0:02:53]} 5. Ng3 {[%clk 0:03:00]}  Bg6 {[%clk 0:02:53]} 6. h4 {[%clk 0:03:01]}  h6 {[%clk 0:02:54]} 7. Bc4 {[%clk 0:03:01]}  e6 {[%clk 0:02:54]} 8. N1e2 {[%clk 0:03:01]}  Nf6 {[%clk 0:02:53]} 9. Nf4 {[%clk 0:03:00]}  Bh7 {[%clk 0:02:53]} 10. O-O {[%clk 0:02:58]}  Bd6 {[%clk 0:02:52]} 11. Nxe6 {[%clk 0:02:54]}  fxe6 {[%clk 0:02:50]} 12. Bxe6 {[%clk 0:02:54]}  Qc7 {[%clk 0:01:47]} 13. Qe2 {[%clk 0:01:56]}  Kd8 {[%clk 0:01:29]} 14. Qf3 {[%clk 0:01:12]}  Nbd7 {[%clk 0:01:24]} 15. Bd2 {[%clk 0:01:08]}  Re8 {[%clk 0:01:22]} 16. Rfe1 {[%clk 0:01:04]}  Qb6 {[%clk 0:01:10]} 17. c4 {[%clk 0:00:48]}  Qxd4 {[%clk 0:00:51]} 18. Bc3 {[%clk 0:00:44]}  Qf4 {[%clk 0:00:51]} 19. Qxf4 {[%clk 0:00:30]}  Bxf4 {[%clk 0:00:51]} 20. Rad1 {[%clk 0:00:30]}  Kc7 {[%clk 0:00:48]} 21. b4 {[%clk 0:00:20]}  Re7 {[%clk 0:00:44]} 22. Bxd7 {[%clk 0:00:15]}  Rxd7 {[%clk 0:00:39]} 23. Rxd7+ {[%clk 0:00:15]}  Kxd7 {[%clk 0:00:39]} 24. Rd1+ {[%clk 0:00:13]}  Kc7 {[%clk 0:00:39]} 25. Ne2 {[%clk 0:00:12]}  Bd6 {[%clk 0:00:36]} 26. c5 {[%clk 0:00:12]}  Be7 {[%clk 0:00:31]} 27. Be5+ {[%clk 0:00:13]}  Kc8 {[%clk 0:00:32]} 28. f4 {[%clk 0:00:13]}  b6 {[%clk 0:00:25]} 29. Bd6 {[%clk 0:00:12]}  Bxd6 {[%clk 0:00:24]} 30. Rxd6 {[%clk 0:00:12]}  Kc7 {[%clk 0:00:23]} 31. Nd4 {[%clk 0:00:08]}  bxc5 {[%clk 0:00:20]} 32. bxc5 {[%clk 0:00:07]}  Bg8 {[%clk 0:00:17]} 33. Rxc6+ {[%clk 0:00:07]}  Kb7 {[%clk 0:00:16]} 34. Rd6 {[%clk 0:00:07]}  Rc8 {[%clk 0:00:15]} 35. Nf5 {[%clk 0:00:06]}  Rc7 {[%clk 0:00:12]} 36. g3 {[%clk 0:00:05]}  Bxa2 {[%clk 0:00:11]} 37. Rd2 {[%clk 0:00:04]}  Bc4 {[%clk 0:00:10]} 38. Rb2+ {[%clk 0:00:04]}  Kc6 {[%clk 0:00:10]} 39. Nd4+ {[%clk 0:00:04]}  Kxc5 {[%clk 0:00:10]} 40. Nf5 {[%clk 0:00:04]}  Ne4 {[%clk 0:00:09]} 41. Kg2 {[%clk 0:00:03]}  Rd7 {[%clk 0:00:09]} 42. Kf3 {[%clk 0:00:03]}  Bd5 {[%clk 0:00:10]} 43. Kg4 {[%clk 0:00:03]}  Nf6+ {[%clk 0:00:10]} 44. Kh3 {[%clk 0:00:02]}  Be6 {[%clk 0:00:10]} 45. g4 {[%clk 0:00:01]}  Bxf5 {[%clk 0:00:10]} 46. gxf5 {[%clk 0:00:01]}  Rd3+ {[%clk 0:00:10]} 47. Kg2 {[%clk 0:00:01]}  a5 {[%clk 0:00:10]} 48. Kf2 {[%clk 0:00:01]}  a4 {[%clk 0:00:10]} 49. Ke2 {[%clk 0:00:02]}  Rh3 {[%clk 0:00:11]} 50. Rc2+ {[%clk 0:00:02]}  Kd5 {[%clk 0:00:11]} 51. Ra2 {[%clk 0:00:03]}  Rh2+ {[%clk 0:00:11]} 52. Kd3 {[%clk 0:00:03]}  Rxa2 {[%clk 0:00:12]} 0-1


[Site "https://www.chess.com"]

[Event "Titled Tuesday Blitz April 26 Early 2022"]
[White "Hnydiuk, Aleksander"]
[Black "Andrews, Todd"]
[WhiteFideId "1109057"]
[BlackFideId "2012456"]
[WhiteElo "2374"]
[BlackElo "2353"]
[Result "1-0"]
[Round "03"]
[TimeControl "180+1"]
[Date "2022.04.26"]
[WhiteClock "0:00:27"]
[BlackClock "0:00:14"]

1. d4 {[%clk 0:03:00]}  Nf6 {[%clk 0:02:58]} 2. c4 {[%clk 0:03:01]}  c5 {[%clk 0:02:58]} 3. d5 {[%clk 0:03:00]}  b5 {[%clk 0:02:59]} 4. cxb5 {[%clk 0:02:52]}  a6 {[%clk 0:03:00]} 5. b6 {[%clk 0:02:51]}  e6 {[%clk 0:02:59]} 6. Nc3 {[%clk 0:02:51]}  Nxd5 {[%clk 0:02:59]} 7. Nxd5 {[%clk 0:02:50]}  exd5 {[%clk 0:03:00]} 8. Qxd5 {[%clk 0:02:50]}  Nc6 {[%clk 0:03:01]} 9. e3 {[%clk 0:02:41]}  Be7 {[%clk 0:03:00]} 10. Bc4 {[%clk 0:02:40]}  O-O {[%clk 0:03:00]} 11. Nf3 {[%clk 0:02:41]}  Rb8 {[%clk 0:03:00]} 12. O-O {[%clk 0:02:40]}  Rxb6 {[%clk 0:03:00]} 13. Rd1 {[%clk 0:02:40]}  Na5 {[%clk 0:02:24]} 14. Be2 {[%clk 0:02:24]}  Rd6 {[%clk 0:02:15]} 15. Qh5 {[%clk 0:02:13]}  Rxd1+ {[%clk 0:01:52]} 16. Bxd1 {[%clk 0:02:14]}  d5 {[%clk 0:01:52]} 17. Bd2 {[%clk 0:01:59]}  Be6 {[%clk 0:01:46]} 18. Bc2 {[%clk 0:01:55]}  g6 {[%clk 0:01:46]} 19. Qh6 {[%clk 0:01:56]}  Bf6 {[%clk 0:01:31]} 20. Rd1 {[%clk 0:01:40]}  Nc4 {[%clk 0:01:29]} 21. Bc3 {[%clk 0:01:34]}  Bxc3 {[%clk 0:01:22]} 22. Ng5 {[%clk 0:01:34]}  Re8 {[%clk 0:01:15]} 23. bxc3 {[%clk 0:01:32]}  Qf6 {[%clk 0:01:10]} 24. Qxh7+ {[%clk 0:01:26]}  Kf8 {[%clk 0:01:10]} 25. Qh6+ {[%clk 0:01:10]}  Qg7 {[%clk 0:01:06]} 26. Qh4 {[%clk 0:01:03]}  Qxc3 {[%clk 0:00:50]} 27. Ba4 {[%clk 0:01:00]}  Re7 {[%clk 0:00:30]} 28. Nh7+ {[%clk 0:00:50]}  Kg7 {[%clk 0:00:30]} 29. Qxe7 {[%clk 0:00:49]}  Kxh7 {[%clk 0:00:25]} 30. Qxc5 {[%clk 0:00:47]}  Kg7 {[%clk 0:00:21]} 31. Qd4+ {[%clk 0:00:46]}  Qxd4 {[%clk 0:00:22]} 32. Rxd4 {[%clk 0:00:47]}  Kf6 {[%clk 0:00:22]} 33. Bb3 {[%clk 0:00:45]}  Ke5 {[%clk 0:00:21]} 34. Kf1 {[%clk 0:00:44]}  a5 {[%clk 0:00:21]} 35. Bxc4 {[%clk 0:00:43]}  dxc4 {[%clk 0:00:21]} 36. Ke1 {[%clk 0:00:43]}  g5 {[%clk 0:00:21]} 37. Kd2 {[%clk 0:00:40]}  f5 {[%clk 0:00:21]} 38. g3 {[%clk 0:00:38]}  Bd5 {[%clk 0:00:19]} 39. Kc3 {[%clk 0:00:36]}  Be6 {[%clk 0:00:19]} 40. h4 {[%clk 0:00:36]}  gxh4 {[%clk 0:00:19]} 41. Rxh4 {[%clk 0:00:35]}  Bd5 {[%clk 0:00:17]} 42. a3 {[%clk 0:00:30]}  Be6 {[%clk 0:00:16]} 43. f3 {[%clk 0:00:30]}  Bd5 {[%clk 0:00:16]} 44. Rf4 {[%clk 0:00:30]}  Be6 {[%clk 0:00:16]} 45. Rxc4 {[%clk 0:00:30]}  Bxc4 {[%clk 0:00:14]} 46. Kxc4 {[%clk 0:00:30]}  a4 {[%clk 0:00:14]} 47. Kc5 {[%clk 0:00:27]} 1-0


[Site "https://www.chess.com"]